fUSD/lending_fUSD_20260115
["ID","MTS","AMOUNT","RATE_DAILY","PERIOD"]
[402085934,1768515040132,-2009.0,0.00017676,2]
[402085935,1768515040141,-2009.0,0.00017738,2]
[402085936,1768515040151,-1211.0,0.00017803,2]
[402085937,1768515040160,-2009.0,0.00017867,2]
[402085938,1768515040170,-1000.0,0.00017913,2]
[402085939,1768515040180,-2009.0,0.0001795,2]
[402085940,1768515040190,-500.0,0.00017972,2]
[402085941,1768515040199,-500.0,0.00017972,2]
[402085942,1768515040209,-500.0,0.00017972,2]
[402085943,1768515040220,-392.39437237,0.00017972,2]
[402085944,1768515040230,-500.0,0.00017972,2]
[402085945,1768515040239,-500.0,0.00017973,2]
[402085946,1768515040249,-500.0,0.00017973,2]
[402085947,1768515040258,-233.81796729,0.00017973,2]
[402085948,1768515040267,-500.0,0.00017973,2]
[402085949,1768515040276,-186.35849238,0.00017973,2]
[402085950,1768515040285,-639.552,0.00017973,2]
[402085951,1768515040295,-500.0,0.00017973,2]
[402085952,1768515040305,-300.0,0.00017973,2]
[402085953,1768515040314,-500.0,0.00017973,2]
[402085954,1768515040323,-500.0,0.00017973,2]
[402085955,1768515040332,-500.0,0.00017973,2]
[402085956,1768515040342,-500.0,0.00017973,2]
[402085957,1768515040351,-500.0,0.00017973,2]
[402085958,1768515040361,-500.0,0.00017973,2]
[402085960,1768515040370,-500.0,0.00017973,2]
[402085961,1768515040378,-500.0,0.00017973,2]
[402085962,1768515040387,-169.26751175,0.00017973,2]
[402085963,1768515040396,-500.0,0.00017973,2]
[402085964,1768515040405,-500.0,0.00017973,2]
[402085965,1768515040414,-32577.71493922,0.00017981,2]
[402085966,1768515040423,-150.0,0.00017989,2]
[402085967,1768515040432,-500.0,0.00018078,2]
[402085968,1768515040441,-2009.0,0.00018155,2]
[402085969,1768515040450,-2009.0,0.00018251,2]
[402085970,1768515040459,-2009.0,0.00018383,2]
[402085971,1768515040469,-2009.0,0.00018389,2]
[402085972,1768515040478,-561.1,0.00018394,2]
[402085973,1768515040487,-2009.0,0.00018454,2]
[402085974,1768515040496,-2373.02874103,0.00018464,4]
[402085975,1768515040505,-2009.0,0.00018493,2]
[402085976,1768515040514,-1000.0,0.00018517,2]
[402085977,1768515040524,-1000.0,0.00018521,2]
[402085978,1768515040533,-1365.99,0.00018533,2]
[402085979,1768515040544,-2009.0,0.00018575,2]
[402085980,1768515040553,-2009.0,0.00018601,2]
[402085981,1768515040563,-207.4,0.00018625,2]
[402085982,1768515040572,-542.41651082,0.00018626,2]
[402085983,1768515040581,-2009.0,0.00018655,2]
[402085984,1768515040590,-2009.0,0.00018695,2]
[402085985,1768515040599,-2009.0,0.00018717,2]
[402085986,1768515040609,-2009.0,0.00018734,2]
[402085987,1768515040621,-2009.0,0.00018745,2]
[402085988,1768515040631,-151.2,0.000188,2]
[402085989,1768515040640,-2009.0,0.00018824,2]
[402085990,1768515040649,-2009.0,0.00018824,2]
[402085991,1768515040659,-2009.0,0.00018869,2]
[402085992,1768515040670,-2351.0,0.0001896,2]
[402085993,1768515040680,-1000.0,0.00018974,2]
[402085994,1768515040692,-465.2113838,0.00019068,2]
[402085995,1768515040702,-2373.02874103,0.00019799,8]
[402085996,1768515040711,-684.71611092,0.00020239,2]
[402085997,1768515040721,-4192.86655172,0.00020247,30]
[402085998,1768515040732,-32577.71493922,0.00020269,2]
[402085999,1768515040742,-561.1,0.00020557,2]
[402086000,1768515040753,-250.0,0.00020737,2]
[402086001,1768515040763,-3292.0,0.00020841,2]
[402086002,1768515040773,-1000.0,0.00020871,2]
[402086003,1768515040784,-2373.02874103,0.00021135,13]
[402086004,1768515040794,-5881.85,0.00021211,2]
[402086005,1768515040804,-5000.0,0.00021918,2]
[402086006,1768515040814,-2373.02874103,0.0002247,18]
[402086007,1768515040823,-32577.71493922,0.00022557,2]
[402086008,1768515040833,-561.1,0.00022721,2]
[402086009,1768515040842,-1000.0,0.00022768,2]
[402086010,1768515040851,-1591.0,0.00022908,2]
[402086011,1768515040860,-2373.02874103,0.00023806,23]
[402086012,1768515040869,-684.71611092,0.00024784,2]
[402086013,1768515040878,-151.2,0.0002479,2]
[402086014,1768515040887,-55190.5216863,0.000248,2]
[402086015,1768515040896,-32577.71493922,0.00024845,2]
[402086016,1768515040906,-561.1,0.00024884,2]
[402086017,1768515040916,-2373.02874103,0.00025141,27]
[402086018,1768515040926,-7396.71359359,0.00025247,30]
[402086019,1768515040934,-11065.04116763,0.00025247,30]
[402086020,1768515040944,-6973.03,0.00025396,2]
[402086021,1768515040953,-308.86671214,0.00025494,2]
[402086022,1768515040962,-151.2,0.00025543,2]
[402086023,1768515040971,-151.2,0.00025543,2]
[402086024,1768515040981,-151.2,0.00025543,2]
[402086025,1768515040990,-20485.9833394,0.00025553,2]
[402086026,1768515041002,-453625.0656512,0.00025553,2]
[402086027,1768515041011,-312.72584335,0.00025559,2]
[402086028,1768515041020,-166.15204038,0.00025559,2]
[402086029,1768515041030,-250.12476281,0.00025559,2]
[402086030,1768515041039,-500.0,0.00025559,2]
[402086031,1768515041048,-500.0,0.00025559,2]
[402086032,1768515041057,-500.0,0.00025559,2]
[402086033,1768515041068,-500.0,0.00025559,2]
[402086034,1768515041077,-215.3452797,0.00025559,2]
[402086035,1768515041086,-500.0,0.00025559,2]
[402086036,1768515041095,-500.0,0.00025559,2]
[402086037,1768515041104,-150.0,0.00025559,2]
[402086038,1768515041113,-151.2,0.00025584,2]
[402086039,1768515041123,-578.20924308,0.00025594,2]
[402086040,1768515041132,-151.0,0.00025594,2]
[402086041,1768515041141,-2500.0,0.00025594,2]
[402086042,1768515041150,-3000.0,0.00025594,2]
[402086043,1768515041159,-3000.0,0.00025594,2]
[402086044,1768515041168,-2500.0,0.00025594,2]
[402086045,1768515041177,-3000.0,0.00025594,2]
[402086046,1768515041187,-2500.0,0.00025594,2]
[402086047,1768515041197,-1056.37014812,0.00025594,2]
[402086048,1768515041206,-3000.0,0.00025594,2]
[402086049,1768515041215,-2500.0,0.00025594,2]
[402086050,1768515041224,-3000.0,0.00025594,2]
[402086051,1768515041233,-2500.0,0.00025594,2]
[402086052,1768515041242,-3000.0,0.00025594,2]
[402086053,1768515041251,-2500.0,0.00025594,2]
[402086054,1768515041260,-3000.0,0.00025594,2]
[402086055,1768515041269,-174.61919141,0.00025594,2]
[402086056,1768515041278,-2500.0,0.00025594,2]
[402086057,1768515041287,-3000.0,0.00025594,2]
[402086058,1768515041296,-2500.0,0.00025594,2]
[402086059,1768515041305,-3000.0,0.00025594,2]
[402086060,1768515041314,-2500.0,0.00025594,2]
[402086061,1768515041324,-3000.0,0.00025594,2]
[402086062,1768515041334,-2500.0,0.00025594,2]
[402086063,1768515041344,-3000.0,0.00025594,2]
[402086064,1768515041353,-2500.0,0.00025594,2]
[402086065,1768515041365,-3000.0,0.00025594,2]
[402086066,1768515041375,-3000.0,0.00025594,2]
[402086067,1768515041384,-3000.0,0.00025594,2]
[402086068,1768515041394,-3000.0,0.00025594,2]
[402086069,1768515041405,-500.0,0.00025594,2]
[402086070,1768515041414,-500.0,0.00025594,2]
[402086071,1768515041423,-3000.0,0.00025594,2]
[402086072,1768515041434,-500.0,0.00025594,2]
[402086073,1768515041444,-500.0,0.00025594,2]
[402086074,1768515041454,-3000.0,0.00025594,2]
[402086075,1768515041464,-500.0,0.00025594,2]
[402086076,1768515041474,-322.6107,0.00025594,2]
[402086077,1768515041484,-500.0,0.00025594,2]
[402086078,1768515041494,-3000.0,0.00025594,2]
[402086079,1768515041503,-574.12855637,0.00025594,2]
[402086080,1768515041513,-500.0,0.00025594,2]
[402086081,1768515041523,-500.0,0.00025594,2]
[402086082,1768515041533,-3000.0,0.00025594,2]
[402086083,1768515041542,-500.0,0.00025594,2]
[402086084,1768515041552,-500.0,0.00025594,2]
[402086085,1768515041561,-3000.0,0.00025594,2]
[402086086,1768515041571,-500.0,0.00025594,2]
[402086087,1768515041581,-3000.0,0.00025594,2]
[402086088,1768515041590,-500.0,0.00025594,2]
[402086089,1768515041600,-500.0,0.00025594,2]
[402086090,1768515041618,-3000.0,0.00025594,2]
[402086091,1768515041627,-500.0,0.00025594,2]
[402086092,1768515041636,-500.0,0.00025594,2]
[402086093,1768515041646,-500.0,0.00025594,2]
[402086094,1768515041656,-500.0,0.00025594,2]
[402086095,1768515041666,-500.0,0.00025594,2]
[402086096,1768515041675,-500.0,0.00025594,2]
[402086097,1768515041686,-500.0,0.00025594,2]
[402086098,1768515041695,-500.0,0.00025594,2]
[402086099,1768515041704,-500.0,0.00025594,2]
[402086100,1768515041713,-500.0,0.00025594,2]
[402086101,1768515041723,-500.0,0.00025594,2]
[402086102,1768515041732,-500.0,0.00025594,2]
[402086103,1768515041741,-500.0,0.00025594,2]
[402086104,1768515041750,-500.0,0.00025594,2]
[402086105,1768515041759,-500.0,0.00025594,2]
[402086106,1768515041768,-464.19143741,0.00025594,2]
[402086107,1768515041777,-500.0,0.00025594,2]
[402086108,1768515041786,-620.0,0.00025594,2]
[402086109,1768515041796,-589.66560827,0.00025594,2]
[402086110,1768515041806,-2000.0,0.00025594,2]
[402086111,1768515041816,-2000.0,0.00025594,2]
[402086112,1768515041825,-2000.0,0.00025594,2]
[402086113,1768515041835,-2000.0,0.00025594,2]
[402086114,1768515041844,-2000.0,0.00025594,2]
[402086115,1768515041853,-500.0,0.00025594,2]
[402086116,1768515041862,-2000.0,0.00025594,2]
[402086117,1768515041871,-500.0,0.00025594,2]
[402086118,1768515041880,-2000.0,0.00025594,2]
[402086119,1768515041890,-500.0,0.00025594,2]
[402086120,1768515041900,-2000.0,0.00025594,2]
[402086121,1768515041909,-500.0,0.00025594,2]
[402086122,1768515041920,-2000.0,0.00025594,2]
[402086123,1768515041929,-500.0,0.00025594,2]
[402086124,1768515041938,-2000.0,0.00025594,2]
[402086125,1768515041947,-500.0,0.00025594,2]
[402086126,1768515041956,-2000.0,0.00025594,2]
[402086127,1768515041965,-500.0,0.00025594,2]
[402086128,1768515041975,-721.12765535,0.00025594,2]
[402086129,1768515041984,-500.0,0.00025594,2]
[402086130,1768515041997,-500.0,0.00025594,2]
[402086131,1768515042006,-500.0,0.00025594,2]
[402086132,1768515042015,-500.0,0.00025594,2]
[402086133,1768515042024,-14971.3938,0.00025747,30]
[402086134,1768515042035,-151.0,0.00026142,2]
[402086135,1768515042045,-181.08010149,0.00026142,2]
[402086136,1768515042054,-595.37131296,0.00026142,2]
[402086137,1768515042063,-1102.72660329,0.00026477,32]
[402086138,1768515042074,-151.0,0.0002669,2]
[402086139,1768515042083,-187.78006525,0.0002669,2]
[402086140,1768515042092,-617.40005154,0.0002669,2]
[402086141,1768515042101,-334.5472959,0.00026963,2]
[402086142,1768515042111,-642.94,0.00026963,2]
[402086143,1768515042120,-7836.0,0.00026998,2]
[402086144,1768515042130,-561.1,0.00027047,2]
[402086145,1768515042140,-32577.71493922,0.00027132,2]
[402086146,1768515042150,-506.0,0.00027137,2]
[402086147,1768515042159,-151.0,0.00027238,2]
[402086148,1768515042169,-194.72792766,0.00027238,2]
[402086149,1768515042178,-640.24385345,0.00027238,2]
[402086150,1768515042189,-195.59,0.00027242,2]
[402086151,1768515042198,-600.0,0.00027397,15]
[402086152,1768515042207,-1101.0,0.00027598,5]
[402086153,1768515042217,-600.0,0.00027671,15]
[402086154,1768515042226,-308.86671211,0.00027728,2]
[402086155,1768515042236,-248.38210406,0.00027786,2]
[402086156,1768515042246,-201.93286099,0.00027786,2]
[402086157,1768515042256,-663.93287602,0.00027786,2]
[402086158,1768515042266,-1102.72660329,0.00027812,36]
[402086159,1768515042276,-600.0,0.00027945,15]
[402086167,1768515042518,-440.66,0.00028,2]
[402086169,1768515042529,-600.0,0.00028219,15]
[402086171,1768515042538,-346.92554585,0.00028332,2]
[402086173,1768515042548,-666.72878,0.00028332,2]
[402086175,1768515042557,-599.60298507,0.00028333,2]
[402086177,1768515042567,-747.8093786,0.00028333,2]
[402086179,1768515042577,-209.40437684,0.00028334,2]
[402086180,1768515042587,-688.49839244,0.00028334,2]
[402086181,1768515042596,-600.0,0.00028493,15]
[402086182,1768515042605,-150.0,0.0002863,2]
[402086183,1768515042615,-600.0,0.00028767,15]
[402086184,1768515042624,-101217.433546,0.00028859,2]
[402086185,1768515042635,-217.15233878,0.00028882,2]
[402086186,1768515042644,-713.97283296,0.00028882,2]
[402086187,1768515042654,-1404.0,0.000289,5]
[402086188,1768515042663,-500.0,0.00028904,2]
[402086189,1768515042673,-600.0,0.00029041,15]
[402086190,1768515042683,-1102.72660329,0.00029147,41]
[402086191,1768515042692,-8014.0,0.00029201,5]
[402086192,1768515042702,-561.1,0.00029211,2]
[402086193,1768515042712,-600.0,0.00029315,15]
[402086194,1768515042721,-32577.71493922,0.0002942,2]
[402086195,1768515042731,-151.2,0.0002942,2]
[402086196,1768515042740,-225.18697532,0.0002943,2]
[402086197,1768515042750,-484.22810817,0.0002943,2]
[402086198,1768515042759,-600.0,0.00029589,15]
[402086199,1768515042769,-19283.82645717,0.00029597,2]
[402086200,1768515043487,-3300.83569973,0.00029597,2]
[402086202,1768515043497,-359.76179104,0.00029701,2]
[402086203,1768515043506,-691.39774486,0.00029701,2]
[402086204,1768515043516,-4571.0407433,0.0002986,2]
[402086205,1768515043526,-600.0,0.00029863,15]
[402086206,1768515043535,-308.86671211,0.00029963,2]
[402086207,1768515043545,-233.51889341,0.00029978,2]
[402086208,1768515043555,-918.90149509,0.00030037,2]
[402086209,1768515043564,-600.0,0.00030137,15]
[402086210,1768515043573,-1793.045112,0.00030137,15]
[402086211,1768515043584,-2156.859454,0.00030137,15]
[402086212,1768515043594,-600.0,0.00030411,15]
[402086213,1768515043604,-1102.72660329,0.00030483,45]
[402086214,1768515043613,-242.15909246,0.00030526,2]
[402086215,1768515043623,-4823.0,0.0003062,2]
[402086216,1768515043632,-566.0,0.0003062,2]
[402086217,1768515043641,-600.0,0.00030685,15]
[402086218,1768515043652,-15201.19591663,0.00030811,30]
[402086219,1768515043661,-1019.9370531,0.00030822,2]
[402086220,1768515043671,-600.0,0.00030959,15]
[402086221,1768515043680,-373.07297731,0.0003107,2]
[402086222,1768515043690,-716.97946142,0.0003107,2]
[402086223,1768515043699,-621.78829552,0.00031072,2]
[402086224,1768515043708,-775.47832561,0.00031072,2]
[402086225,1768515043717,-251.11897888,0.00031074,2]
[402086226,1768515043727,-600.0,0.00031233,15]
[402086227,1768515043736,-500.0,0.0003125,2]
[402086229,1768515043746,-561.1,0.00031374,2]
[402086230,1768515043755,-150.0,0.00031493,2]
[402086231,1768515043764,-600.0,0.00031507,15]
[402086232,1768515043774,-260.4103811,0.00031622,2]
[402086233,1768515043783,-150.0,0.00031726,60]
[402086234,1768515043792,-500.0,0.00031726,60]
[402086235,1768515043801,-150.0,0.00031726,60]
[402086236,1768515043810,-163.78604122,0.00031726,60]
[402086237,1768515043818,-150.0,0.00031726,60]
[402086238,1768515043828,-219.56227876,0.00031726,60]
[402086239,1768515043838,-500.0,0.00031726,60]
[402086240,1768515043847,-500.0,0.00031726,60]
[402086241,1768515043857,-155.73019087,0.00031726,30]
[402086242,1768515043866,-500.0,0.00031726,60]
[402086243,1768515043876,-150.0,0.00031726,60]
[402086244,1768515043886,-154.92626589,0.00031726,60]
[402086245,1768515043896,-266.69109389,0.00031726,60]
[402086246,1768515043907,-162.81993177,0.00031726,60]
[402086247,1768515043917,-500.0,0.00031726,60]
[402086248,1768515043927,-158.73243079,0.00031726,60]
[402086249,1768515043936,-500.0,0.00031726,60]
[402086250,1768515043946,-157.32394176,0.00031726,60]
[402086251,1768515043955,-500.0,0.00031726,60]
[402086252,1768515043964,-710.0,0.00031726,60]
[402086253,1768515043974,-150.0,0.00031726,2]
[402086254,1768515043983,-500.0,0.00031726,60]
[402086255,1768515043997,-150.0,0.00031726,60]
[402086256,1768515044006,-500.0,0.00031726,60]
[402086257,1768515044015,-150.0,0.00031726,2]
[402086259,1768515044025,-500.0,0.00031726,60]
[402086260,1768515044036,-500.0,0.00031726,60]
[402086261,1768515044046,-500.0,0.00031726,60]
[402086262,1768515044055,-500.0,0.00031726,60]
[402086263,1768515044067,-500.0,0.00031726,60]
[402086264,1768515044077,-150.0,0.00031726,2]
[402086265,1768515044088,-150.0,0.00031726,2]
[402086266,1768515044098,-201.98061622,0.00031736,2]
[402086267,1768515044109,-24303.0,0.00031753,2]
[402086268,1768515044119,-229.57655883,0.00031781,60]
[402086269,1768515044129,-500.0,0.00031781,60]
[402086270,1768515044140,-150.0,0.00031781,60]
[402086271,1768515044149,-500.0,0.00031781,60]
[402086272,1768515044159,-500.0,0.00031781,60]
[402086273,1768515044167,-500.0,0.00031781,60]
[402086274,1768515044176,-150.0,0.00031781,60]
[402086275,1768515044186,-500.0,0.00031781,60]
[402086276,1768515044195,-500.0,0.00031781,60]
[402086277,1768515044204,-500.0,0.00031781,60]
[402086278,1768515044213,-710.0,0.00031781,60]
[402086279,1768515044223,-150.0,0.00031781,2]
[402086280,1768515044232,-500.0,0.00031781,60]
[402086281,1768515044241,-150.0,0.00031781,60]
[402086282,1768515044250,-559.25683787,0.00031781,60]
[402086283,1768515044259,-500.0,0.00031781,60]
[402086284,1768515044268,-500.0,0.00031781,60]
[402086285,1768515044277,-500.0,0.00031781,60]
[402086286,1768515044286,-500.0,0.00031781,60]
[402086287,1768515044295,-500.0,0.00031781,60]
[402086288,1768515044304,-600.0,0.00031781,15]
[402086289,1768515044313,-1102.72660329,0.00031818,49]
[402086290,1768515044323,-500.0,0.00031836,60]
[402086291,1768515044332,-165.70747679,0.00031836,60]
[402086292,1768515044341,-500.0,0.00031836,60]
[402086293,1768515044350,-303.58556021,0.00031836,60]
[402086294,1768515044360,-500.0,0.00031836,60]
[402086295,1768515044369,-200.0,0.00031836,60]
[402086296,1768515044384,-500.0,0.00031836,60]
[402086297,1768515044400,-500.0,0.00031836,60]
[402086298,1768515044418,-500.0,0.00031836,60]
[402086299,1768515044428,-710.0,0.00031836,60]
[402086300,1768515044440,-150.0,0.00031836,2]
[402086301,1768515044449,-500.0,0.00031836,60]
[402086302,1768515044459,-150.0,0.00031836,60]
[402086303,1768515044468,-500.0,0.00031836,60]
[402086304,1768515044478,-500.0,0.00031836,60]
[402086305,1768515044487,-500.0,0.00031836,60]
[402086306,1768515044497,-500.0,0.00031836,60]
[402086307,1768515044508,-500.0,0.00031836,60]
[402086308,1768515044517,-500.0,0.0003189,60]
[402086309,1768515044527,-500.0,0.0003189,60]
[402086310,1768515044632,-500.0,0.0003189,60]
[402086311,1768515044642,-235.28780433,0.0003189,60]
[402086312,1768515044651,-500.0,0.0003189,60]
[402086313,1768515044661,-710.0,0.0003189,60]
[402086314,1768515044670,-178.63439132,0.0003189,2]
[402086315,1768515044679,-150.0,0.0003189,60]
[402086316,1768515044688,-150.0,0.0003189,60]
[402086317,1768515044697,-500.0,0.0003189,60]
[402086318,1768515044706,-207.53349855,0.0003189,60]
[402086319,1768515044715,-500.0,0.0003189,60]
[402086320,1768515044724,-420.85067139,0.0003189,60]
[402086321,1768515044733,-500.0,0.0003189,60]
[402086322,1768515044742,-295.1864425,0.00031945,60]
[402086323,1768515044752,-599.95413069,0.00031945,60]
[402086324,1768515044761,-473.41495749,0.00031945,60]
[402086325,1768515044770,-265.0,0.00031945,60]
[402086326,1768515044779,-710.0,0.00031945,60]
[402086327,1768515044787,-216.76610752,0.00031945,60]
[402086328,1768515044796,-500.0,0.00031945,60]
[402086329,1768515044805,-500.0,0.00031945,60]
[402086330,1768515044814,-500.0,0.00031945,60]
[402086331,1768515044822,-710.0,0.00032,60]
[402086332,1768515044832,-209.89186614,0.00032,60]
[402086333,1768515044841,-500.0,0.00032,60]
[402086334,1768515044850,-710.0,0.00032055,60]
[402086335,1768515044858,-600.0,0.00032055,15]
[402086336,1768515044868,-306.0,0.000321,2]
[402086337,1768515044876,-980.0,0.000321,2]
[402086338,1768515044885,-710.0,0.0003211,60]
[402086339,1768515044894,-710.0,0.00032164,60]
[402086340,1768515044904,-270.0455652,0.0003217,2]
[402086341,1768515044913,-308.86671211,0.00032197,2]
[402086342,1768515044923,-710.0,0.00032219,60]
[402086343,1768515044932,-710.0,0.00032274,60]
[402086344,1768515044941,-710.0,0.00032329,60]
[402086345,1768515044950,-600.0,0.00032329,15]
[402086346,1768515044959,-710.0,0.00032384,60]
[402086347,1768515044968,-710.0,0.00032438,60]
[402086348,1768515044977,-386.87667747,0.00032439,2]
[402086349,1768515044987,-743.50770149,0.00032439,2]
[402086350,1768515044998,-710.0,0.00032493,60]
[402086351,1768515045007,-710.0,0.00032548,60]
[402086352,1768515045016,-710.0,0.00032603,60]
[402086353,1768515045025,-600.0,0.00032603,15]
[402086354,1768515045035,-710.0,0.00032658,60]
[402086355,1768515045043,-710.0,0.00032712,60]
[402086356,1768515045053,-280.03725112,0.00032718,2]
[402086357,1768515045062,-710.0,0.00032767,60]
[402086358,1768515045074,-710.0,0.00032822,60]
[402086359,1768515045083,-191.042,0.00032843,2]
[402086360,1768515045092,-250.0,0.00032843,2]
[402086361,1768515045102,-212.092,0.00032843,2]
[402086362,1768515045111,-169.0,0.00032843,2]
[402086363,1768515045121,-229.853,0.00032843,2]
[402086364,1768515045131,-710.0,0.00032877,60]
[402086365,1768515045142,-600.0,0.00032877,30]
[402086366,1768515045151,-150.0,0.00032877,60]
[402086367,1768515045161,-1007.0,0.00032877,60]
[402086368,1768515045171,-710.0,0.00032931,60]
[402086369,1768515045180,-150.0,0.00032932,60]
[402086370,1768515045190,-1007.0,0.00032932,60]
[402086371,1768515045200,-729.0,0.00032986,60]
[402086372,1768515045210,-282.21849629,0.00032987,60]
[402086373,1768515045220,-1007.0,0.00032987,60]
[402086374,1768515045231,-506.0,0.00033011,8]
[402086375,1768515045239,-1007.0,0.00033041,60]
[402086376,1768515045248,-1007.0,0.00033096,60]
[402086377,1768515045257,-600.0,0.00033151,30]
[402086378,1768515045266,-1007.0,0.00033151,60]
[402086379,1768515045274,-1102.72660329,0.00033154,54]
[402086380,1768515045283,-1007.0,0.00033206,60]
[402086381,1768515045292,-659.88473789,0.0003325,2]
[402086382,1768515045301,-1900.403,0.0003325,35]
[402086383,1768515045310,-172.78,0.0003325,35]
[402086385,1768515045320,-1007.0,0.00033261,60]
[402086386,1768515045329,-290.39862941,0.00033266,2]
[402086387,1768515045339,-1007.0,0.00033315,60]
[402086388,1768515045349,-1007.0,0.0003337,60]
[402086389,1768515045359,-600.0,0.00033425,30]
[402086390,1768515045367,-1007.0,0.00033425,60]
[402086391,1768515045376,-1007.0,0.0003348,60]
[402086392,1768515045385,-1007.0,0.00033535,60]
[402086393,1768515045395,-561.1,0.00033538,5]
[402086394,1768515045404,-1007.0,0.00033589,60]
[402086395,1768515045413,-740.696,0.0003362,2]
[402086396,1768515045423,-1007.0,0.00033644,60]
[402086397,1768515045434,-600.0,0.00033699,30]
[402086398,1768515045444,-1007.0,0.00033699,60]
[402086399,1768515045455,-500.0,0.00033728,10]
[402086400,1768515045466,-500.0,0.00033728,10]
[402086401,1768515045477,-314.44792646,0.00033728,10]
[402086402,1768515045487,-500.0,0.00033728,10]
[402086403,1768515045496,-505.24437882,0.00033728,10]
[402086404,1768515045506,-150.0,0.00033728,20]
[402086405,1768515045516,-1007.0,0.00033754,60]
[402086406,1768515045529,-212.7673374,0.00033808,2]
[402086407,1768515045540,-574.12,0.00033808,2]
[402086408,1768515045551,-1007.0,0.00033809,60]
[402086409,1768515045561,-513.23644864,0.00033811,2]
[402086410,1768515045571,-310.67578179,0.00033811,2]
[402086411,1768515045581,-301.1433787,0.00033814,2]
[402086412,1768515045598,-6835.78,0.00033841,2]
[402086413,1768515045616,-1007.0,0.00033863,60]
[402086414,1768515045628,-1007.0,0.00033918,60]
[402086415,1768515045639,-1007.0,0.00033973,60]
[402086416,1768515045649,-7513.39733001,0.00034,7]
[402086417,1768515045659,-1007.0,0.00034028,60]
[402086418,1768515045669,-1007.0,0.00034082,60]
[402086419,1768515045678,-1019.56677158,0.00034137,60]
[402086420,1768515045689,-150.0,0.00034356,2]
[402086421,1768515045699,-200.0,0.000344,9]
[402086422,1768515045709,-308.86671211,0.00034431,2]
[402086423,1768515045720,-1102.72660329,0.00034489,58]
[402086424,1768515045730,-150.0,0.0003466,2]
[402086425,1768515045740,-150.0,0.00034792,2]
[402086426,1768515045749,-1182.7891,0.000348,120]
[402086427,1768515045759,-201.98061622,0.00034859,2]
[402086428,1768515045769,-2300.0,0.00035,10]
[402086429,1768515045778,-1000.0,0.000352,7]
[402086430,1768515045788,-500.0,0.0003525,120]
[402086431,1768515045798,-7868.05712394,0.00035301,2]
[402086432,1768515045807,-527.47764588,0.00035374,30]
[402086433,1768515045817,-789.18,0.000354,10]
[402086434,1768515045827,-150.0,0.00035519,2]
[402086435,1768515045836,-931.82019229,0.00035597,30]
[402086436,1768515045846,-151.0,0.00035613,14]
[402086437,1768515045856,-500.0,0.00035616,10]
[402086438,1768515045866,-201.23792919,0.00035616,10]
[402086439,1768515045877,-500.0,0.00035616,10]
[402086440,1768515045889,-500.0,0.00035616,10]
[402086441,1768515045900,-500.0,0.00035616,10]
[402086443,1768515045910,-565.07616409,0.00035616,10]
[402086444,1768515045922,-500.0,0.00035616,10]
[402086445,1768515045933,-500.0,0.00035616,10]
[402086446,1768515045943,-500.0,0.00035616,10]
[402086447,1768515045953,-500.0,0.00035616,10]
[402086448,1768515045966,-161.0176457,0.00035616,10]
[402086449,1768515045979,-3006.04266718,0.00035616,10]
[402086450,1768515045988,-500.0,0.00035616,10]
[402086451,1768515046001,-500.0,0.00035616,10]
[402086452,1768515046012,-500.0,0.00035616,10]